bitfinex-derivatives/quotes_BNBF0:USTF0_20250406
["timestamp","ask_amount","ask_price","bid_price","bid_amount"]
[1743941947782,0.58246558,588.61,588.06,0.28255196]
[1743941947987,0.58246558,588.6,588.06,0.28255196]
[1743941948285,0.58246558,588.59,588.12,1.27319059]
[1743941948487,0.29565941,588.73,588.13,0.28255196]
[1743941948787,0.58252582,588.72,588.13,0.28255196]
[1743941948987,0.58252582,588.71,588.13,0.28255196]
[1743941949188,0.58252582,588.7,588.13,0.28255196]
[1743941949386,0.58252582,588.69,588.13,0.28255196]
[1743941949586,0.58252582,588.68,588.13,0.28255196]
[1743941949788,0.58252582,588.67,588.13,0.28255196]
[1743941949986,0.58252582,588.66,588.07,0.28255196]
[1743941950185,0.58252582,588.65,588.07,0.28255196]
[1743941950388,0.58252582,588.64,588.07,0.28255196]
[1743941950591,0.58252582,588.63,588.07,0.28255196]
[1743941950786,0.58252582,588.62,588.07,0.28255196]
[1743941951084,0.58252582,588.61,588.07,0.28255196]
[1743941951284,0.58252582,588.6,588.07,0.28255196]
[1743941951485,0.58252582,588.59,588.07,0.28255196]
[1743941951687,0.29565816,588.73,588.07,0.28255196]
[1743941951886,0.58254784,588.72,588.07,0.28255196]
[1743941952086,0.58254784,588.71,588.07,0.28255196]
[1743941952289,0.29565816,588.73,588.02,1.27319059]
[1743941952290,0.58254784,588.7,588.08,0.28255196]
[1743941952491,0.58254784,588.69,588.03,0.28255196]
[1743941952694,0.58254784,588.68,588.04,0.28255196]
[1743941952889,0.58254784,588.67,588.04,0.28255196]
[1743941953093,0.58254784,588.66,588.05,0.28255196]
[1743941953294,0.58254784,588.65,588.06,0.28245057]
[1743941953494,0.58254784,588.64,588.07,0.28245057]
[1743941953794,0.58254784,588.63,588.08,0.28245057]
[1743941953989,0.58254784,588.62,588.03,0.28245057]
[1743941954194,0.58258525,588.61,588.04,0.28245057]
[1743941954395,0.58258525,588.6,588.04,0.28245057]
[1743941954691,0.58258525,588.59,588.03,1.27319059]
[1743941954895,0.58258525,588.58,588.04,0.2824506]
[1743941955094,0.58258525,588.57,588.04,0.2824506]
[1743941955395,0.29566318,588.73,588.04,0.2824506]
[1743941955595,0.58267262,588.72,588.04,0.2824506]
[1743941955790,0.58267262,588.71,588.04,0.2824506]
[1743941955990,0.58267339,588.7,588.04,0.2824506]
[1743941956192,0.58267339,588.69,588.04,0.2824506]
[1743941956394,0.58267339,588.68,588.02,1.27319059]
[1743941956594,0.58267339,588.67,588.03,0.2824519]
[1743941956795,0.58267339,588.66,588.03,0.2824519]
[1743941956994,0.58267339,588.65,588.03,0.2824519]
[1743941957194,0.58267339,588.64,588.03,0.2824519]
[1743941957390,0.58267339,588.63,588.03,0.2824519]
[1743941957595,0.58267339,588.62,588.03,0.2824519]
[1743941957791,0.58267812,588.61,588.03,0.2824519]
[1743941957995,0.58267812,588.6,588.03,0.2824519]
[1743941958291,0.58267812,588.59,588.03,0.2824519]
[1743941958495,0.58267812,588.58,588.03,0.2824519]
[1743941958694,0.58267812,588.57,588.03,0.2824519]
[1743941958891,0.517,588.66,588.03,0.2824519]
[1743941959097,0.58267761,588.65,588.05,1.27319059]
[1743941959296,0.58267761,588.64,588.06,0.2824519]
[1743941959496,0.58267761,588.63,588.06,0.2824519]
[1743941959697,0.58267761,588.62,588.06,0.2824519]
[1743941959898,0.58267761,588.61,588.06,0.2824519]
[1743941960198,0.58267761,588.6,588.06,0.2824519]
[1743941960494,0.58267761,588.59,588.06,0.2824519]
[1743941960695,0.58267761,588.58,588.06,0.2824519]
[1743941960895,0.58267761,588.57,588.06,0.2824519]
[1743941961095,0.58268108,588.56,588.06,0.2824519]
[1743941961298,0.517,588.66,588.05,1.27319059]
[1743941961498,0.58267349,588.65,588.06,0.28246811]
[1743941961794,0.58267349,588.64,588.06,0.28246811]
[1743941962000,0.58267349,588.63,588.06,0.28246811]
[1743941962195,0.58267349,588.62,588.12,1.27319059]
[1743941962395,0.58267349,588.61,588.13,0.28246811]
[1743941962599,0.58267349,588.6,588.13,0.28246811]
[1743941962799,0.58267349,588.59,588.13,0.28246811]
[1743941962995,0.58267349,588.58,588.13,0.28246811]
[1743941963195,0.58267349,588.57,588.13,0.28246811]
[1743941963399,0.517,588.66,588.13,0.28246811]
[1743941963602,0.58267115,588.65,588.13,0.28246811]
[1743941963796,0.58267115,588.64,588.16,1.27319059]
[1743941964000,0.58267115,588.63,588.17,0.28246811]
[1743941964300,0.517,588.66,588.17,0.28246811]
[1743941964301,0.58267115,588.62,588.17,0.28246811]
[1743941964502,0.58267115,588.61,588.17,0.28246811]
[1743941964702,0.58267115,588.6,588.17,0.28246811]
[1743941964902,0.58267115,588.59,588.18,0.28258226]
[1743941965098,0.58267115,588.58,588.17,0.28258226]
[1743941965300,0.58267115,588.57,588.17,0.28258226]
[1743941965602,0.517,588.66,588.17,0.28258226]
[1743941965802,0.58266936,588.65,588.17,0.28258226]
[1743941966001,0.58266936,588.64,588.17,0.28258226]
[1743941966202,0.58266936,588.63,588.17,0.28258226]
[1743941966395,0.58266936,588.62,588.18,0.28258226]
[1743941966598,0.58266936,588.61,588.11,0.28258226]
[1743941966900,0.58266936,588.6,588.11,0.28258226]
[1743941967099,0.58266851,588.59,588.11,0.28258226]
[1743941967298,0.517,588.66,588.11,0.28258226]
[1743941967500,0.58266805,588.65,588.11,0.28258226]
[1743941967802,0.58266805,588.64,588.11,0.28258226]
[1743941967998,0.58266805,588.63,588.11,0.28258226]
[1743941968198,0.58266805,588.62,588.11,0.28258226]
[1743941968399,0.58266805,588.61,588.11,0.28258226]
[1743941968603,0.58266805,588.6,588.11,0.28258226]
[1743941968801,0.517,588.66,588.11,0.28258226]
[1743941968999,0.58266847,588.65,588.11,0.28258226]
[1743941969218,0.58266847,588.64,588.11,0.28258226]
[1743941969398,0.58266847,588.63,588.11,0.28258226]
[1743941969603,0.58266847,588.62,588.11,0.28258226]
[1743941969803,0.58266847,588.61,588.11,0.28258226]
[1743941969999,0.58266847,588.6,588.11,0.28258226]
[1743941970200,0.517,588.66,588.11,0.28258226]
[1743941970404,0.58267444,588.65,588.11,0.28258226]
[1743941970604,0.58267444,588.64,588.11,0.28258226]
[1743941970805,0.58267444,588.63,588.11,0.28258226]
[1743941971006,0.58267444,588.62,588.1,1.27319059]
[1743941971205,0.58267444,588.61,588.01,1.27319059]
[1743941971405,0.58267444,588.6,588.02,0.28259958]
[1743941971610,0.517,588.66,588.02,0.28259958]
[1743941971804,0.58267831,588.65,588.02,0.28259958]
[1743941972008,0.58267831,588.64,588.02,0.28259958]
[1743941972209,0.58267831,588.63,588.02,0.28259958]
[1743941972512,0.58267831,588.62,588.02,0.28259958]
[1743941972711,0.58267831,588.61,588.02,0.28259958]
[1743941972911,0.58267831,588.6,588.02,0.28259958]
[1743941973114,0.58267831,588.59,588.02,0.28259958]
[1743941973315,0.517,588.66,588.02,0.28259958]
[1743941973513,0.58268286,588.65,588.02,0.28259958]
[1743941973713,0.58268286,588.64,587.89,0.28259958]
[1743941973913,0.58268286,588.63,587.9,0.28259958]
[1743941974213,0.58268401,588.62,587.88,1.27319059]
[1743941974414,0.58268401,588.61,587.89,0.2825997]
[1743941974615,0.58268401,588.6,587.89,0.2825997]
[1743941974914,0.517,588.66,587.89,0.2825997]
[1743941975113,0.58268446,588.65,587.89,0.2825997]
[1743941975310,0.58268446,588.64,587.89,0.2825997]
[1743941975509,0.58268446,588.63,587.89,0.2825997]
[1743941975714,0.58268446,588.62,587.89,0.2825997]
[1743941976012,0.58268446,588.61,587.89,0.2825997]
[1743941976212,0.58268446,588.6,587.9,1.27319059]
[1743941976414,0.58268446,588.59,587.91,0.2825997]
[1743941976710,0.58268446,588.58,587.91,0.2825997]
[1743941976912,0.58268446,588.57,587.91,0.2825997]
[1743941977215,0.517,588.66,587.91,0.2825997]
[1743941977514,0.58269375,588.65,587.91,0.2825997]
[1743941977714,0.58269375,588.64,587.92,0.2826006]
[1743941977914,0.58269375,588.63,587.91,0.2826006]
[1743941978114,0.58269375,588.62,587.92,0.2826006]
[1743941978315,0.58269375,588.61,587.92,0.2826006]
[1743941978512,0.58269375,588.6,587.91,0.2826006]
[1743941978715,0.58269375,588.59,587.96,1.27319059]
[1743941979011,0.58269375,588.58,587.97,0.2826006]
[1743941979215,0.58269375,588.57,587.97,0.2826006]
[1743941979416,0.517,588.66,587.97,0.2826006]
[1743941979612,0.58269726,588.65,587.97,0.2826006]
[1743941979812,0.58269726,588.64,587.97,0.2826006]
[1743941980118,0.58269726,588.63,587.97,0.2826006]
[1743941980313,0.58269726,588.62,587.97,0.2826006]
[1743941980613,0.58269726,588.61,587.97,0.2826006]
[1743941980818,0.58269726,588.6,587.97,0.2826006]
[1743941981118,0.58269726,588.59,587.97,0.2826006]
[1743941981318,0.58269726,588.58,587.97,0.2826006]
[1743941981518,0.58269783,588.57,587.95,0.2826006]
[1743941981718,0.29567072,588.73,587.96,0.2826006]
[1743941981913,0.58269783,588.72,587.96,0.2826006]
[1743941982118,0.58269783,588.71,587.97,0.2826006]
[1743941982313,0.58269783,588.7,587.95,0.2826006]
[1743941982514,0.58269783,588.69,587.96,0.2826006]
[1743941982715,0.58269783,588.68,587.95,0.2826006]
[1743941982918,0.58269783,588.67,587.95,0.2826006]
[1743941983120,0.58269783,588.66,587.95,0.2826006]
[1743941983321,0.58269783,588.65,587.95,0.2826006]
[1743941983623,0.665,588.7,588.12,1.27319059]
[1743941983624,0.58269783,588.64,588.12,1.27319059]
[1743941983823,0.665,588.7,588.13,0.2826006]
[1743941984022,0.58249734,588.69,588.13,0.2826006]
[1743941984322,0.58249734,588.68,588.13,0.2826006]
[1743941984522,0.58249734,588.67,588.13,0.2826006]
[1743941984723,0.58249734,588.66,588.13,0.2826006]
[1743941984923,0.58249734,588.65,588.13,0.2826006]
[1743941985124,0.665,588.7,588.13,0.2826006]
[1743941985325,0.58241109,588.69,588.13,0.2826006]
[1743941985521,0.58241109,588.68,588.04,0.2826006]
[1743941985722,0.58241109,588.67,588.04,0.2826006]
[1743941985922,0.58241109,588.66,588.04,0.2826006]
[1743941986120,0.665,588.7,588.04,0.2826006]
[1743941986317,0.58233777,588.69,588.04,0.2826006]
[1743941986522,0.58233777,588.68,588.04,0.2826006]
[1743941986720,0.58233777,588.67,588.04,0.2826006]
[1743941986924,0.58233777,588.66,588.04,0.2826006]
[1743941987125,0.665,588.7,588.04,0.2826006]
[1743941987326,0.58227583,588.69,588.03,0.2826006]
[1743941987528,0.58227583,588.68,588.04,0.2826006]
[1743941987729,0.58227583,588.67,588.03,0.2826006]
[1743941988029,0.58227583,588.66,588.04,0.2826006]
[1743941988230,0.665,588.7,588.03,0.2826006]
[1743941988428,0.58222426,588.69,588.04,0.2826006]
[1743941988630,0.58222426,588.68,588.03,0.2826006]
[1743941988827,0.58222426,588.67,587.92,0.2826006]
[1743941989027,0.665,588.7,587.92,0.2826006]
[1743941989229,0.58218324,588.69,587.92,0.2826006]
[1743941989425,0.58218324,588.68,587.92,0.2826006]
[1743941989632,0.58218324,588.67,587.92,0.2826006]
[1743941989832,0.665,588.7,587.92,0.2826006]
[1743941990132,0.58214737,588.69,587.92,0.2826006]
[1743941990331,0.665,588.7,587.92,0.2826006]
[1743941990934,0.665,588.7,587.94,1.27319059]
[1743941991128,0.665,588.7,587.95,0.2826006]
[1743941994237,0.665,588.7,587.95,0.28256918]
[1743941994536,0.665,588.7,587.96,0.28257212]
[1743941994735,0.665,588.7,587.92,0.28257212]
[1743941994937,0.665,588.7,587.93,0.28257212]
[1743941996443,0.665,588.7,587.93,1.55576271]
[1743941996632,0.665,588.7,587.93,1.27319059]
[1743941996838,0.665,588.7,587.94,0.28259653]
[1743941999343,0.665,588.7,588.07,1.27319059]
[1743941999536,0.665,588.7,588.08,0.28259653]
[1743942000741,0.665,588.7,588.07,1.27319059]
[1743942000944,0.665,588.7,588.09,0.282586]
[1743942001145,0.665,588.7,588.08,0.282586]
[1743942002445,0.665,588.7,588.07,1.27319059]
[1743942002645,0.665,588.7,588.18,1.27319059]
[1743942002840,0.665,588.7,588.19,0.28263793]
[1743942005647,0.665,588.7,588.15,1.27319059]
[1743942005847,0.665,588.7,588.16,0.28262305]
[1743942008246,0.665,588.7,588.17,0.28262305]
[1743942008447,0.665,588.7,588.13,0.28262305]
[1743942008646,0.665,588.7,588.14,0.28262305]
[1743942008843,0.665,588.7,588.15,0.28262305]
[1743942009050,0.665,588.7,588.13,0.28262305]
[1743942009244,0.665,588.7,588.12,1.27319059]
[1743942009449,0.665,588.7,588.13,0.28263947]
[1743942010146,0.665,588.7,588.14,0.28263947]
[1743942010349,0.665,588.7,588.12,0.28263947]
[1743942010543,0.665,588.7,588.13,0.28263947]
[1743942010747,0.665,588.7,588.11,1.27319059]
[1743942010948,0.665,588.7,588.12,0.28253279]
[1743942012650,0.58171649,588.69,588.11,1.27319059]
[1743942012951,0.58171649,588.68,588.12,0.28264067]
[1743942013150,0.58171649,588.67,588.12,0.28264067]
[1743942013349,0.58171649,588.66,588.12,0.28264067]
[1743942013548,0.33953551,589.04,588.12,0.28264067]
[1743942013749,0.29564434,588.76,588.12,0.28264067]
[1743942013949,0.58172213,588.75,588.12,1.55583126]
[1743942014250,0.58172213,588.74,588.13,0.28264067]
[1743942014549,0.58172213,588.73,588.13,0.28264067]
[1743942014749,0.58172213,588.72,588.13,0.28264067]
[1743942014950,0.58172213,588.71,588.13,0.28264067]
[1743942015148,0.58172213,588.7,588.13,0.28264067]
[1743942015347,0.58172213,588.69,588.13,0.28264067]
[1743942015553,0.58172213,588.68,588.13,0.28264067]
[1743942015848,1.24272213,588.67,588.13,0.28264067]
[1743942016051,0.58172213,588.66,588.13,0.28264067]
[1743942016253,0.661,588.67,588.13,0.28264067]
[1743942016448,0.58174021,588.66,588.15,1.27319059]
[1743942016654,0.661,588.67,588.16,0.28264067]
[1743942016852,0.58174271,588.66,588.16,0.28264067]
[1743942017052,0.661,588.67,588.16,0.28264067]
[1743942017248,0.58173901,588.66,588.16,0.28264067]
[1743942017452,0.661,588.67,588.16,0.28264067]
[1743942017752,0.58174606,588.66,588.16,0.28264067]
[1743942017949,0.661,588.67,588.16,0.28264067]
[1743942018154,0.58174976,588.66,588.17,1.27319059]
[1743942018353,0.661,588.67,588.18,0.28264067]
[1743942018550,0.58175938,588.66,588.18,0.28264067]
[1743942018752,0.661,588.67,588.18,0.28264067]
[1743942018956,0.58175939,588.66,588.18,0.28264067]
[1743942019254,0.661,588.67,588.18,0.28264067]
[1743942020659,0.661,588.67,588.12,0.28264067]
[1743942020857,0.661,588.67,588.19,0.28264067]
[1743942021053,0.661,588.67,588.13,0.28264067]
[1743942021260,0.661,588.67,588.2,0.28264067]
[1743942021458,0.661,588.67,588.21,0.28264067]
[1743942021659,0.661,588.67,588.12,0.28264067]
[1743942021855,0.661,588.67,588.13,0.28264067]
[1743942022052,0.661,588.67,588.12,0.28264067]
[1743942022258,0.661,588.67,588.13,0.28264067]
[1743942022456,0.661,588.67,588.12,0.28264067]
[1743942022658,0.661,588.67,588.13,0.28264067]
[1743942022861,0.661,588.67,588.1,1.27319059]
[1743942023062,0.661,588.67,588.11,0.28266368]
[1743942025764,0.661,588.67,588.03,0.28266368]
[1743942026064,0.661,588.67,588.02,1.27319059]
[1743942026262,0.661,588.67,588.03,0.28263577]
[1743942027167,0.661,588.67,588.02,1.27319059]
[1743942027368,0.661,588.67,588.03,0.28261334]
[1743942027962,0.661,588.67,588.02,1.27319059]
[1743942028164,0.661,588.67,588.03,0.28263275]
[1743942028869,0.29569961,588.77,588.03,0.28263275]
[1743942029169,0.58187665,588.76,588.03,0.28263275]
[1743942029368,0.58187665,588.75,588.03,0.28263275]
[1743942029569,0.58187665,588.74,588.02,1.27319059]
[1743942029769,0.29569961,588.77,588.03,0.28263601]
[1743942029770,0.58187665,588.73,588.03,0.28263601]
[1743942029969,0.58187665,588.72,588.03,0.28263601]
[1743942030169,0.58187665,588.71,588.03,0.28263601]
[1743942030370,0.58187665,588.7,588.03,0.28263601]
[1743942030570,0.58187665,588.69,588.03,0.28263601]
[1743942030768,0.58187665,588.68,588.09,1.27319059]
[1743942030969,0.29568705,588.77,588.1,0.28263601]
[1743942031170,0.58191724,588.76,588.09,1.27319059]
[1743942031370,0.58191724,588.75,588.1,0.28263771]
[1743942031569,0.58191724,588.74,588.1,0.28263771]
[1743942031767,0.58191724,588.73,588.1,0.28263771]
[1743942031969,0.58191724,588.72,588.09,1.27319059]
[1743942032169,0.58191724,588.71,588.1,0.28263682]
[1743942032366,0.58191724,588.7,588.1,0.28263682]
[1743942032669,0.58191724,588.69,588.1,0.28263682]
[1743942032969,0.58191724,588.68,588.1,0.28263682]
[1743942033170,0.58196428,588.67,588.1,0.28263682]
[1743942033370,0.617,588.74,588.1,0.28263682]
[1743942033570,0.58200374,588.73,588.1,0.28263682]
[1743942033870,0.58200374,588.72,588.1,0.28263682]
[1743942034071,0.58200374,588.71,588.1,0.28263682]
[1743942034267,0.58200374,588.7,588.1,0.28263682]
[1743942034568,0.617,588.74,588.1,0.28263682]
[1743942034765,0.58203709,588.73,588.1,0.28263682]
[1743942034969,0.58203709,588.72,588.1,0.28263682]
[1743942035271,0.58203709,588.71,588.1,0.28263682]
[1743942035472,0.617,588.74,588.2,1.27319059]
[1743942035772,0.58206475,588.73,588.21,0.28263682]
[1743942035978,0.58206475,588.72,588.21,0.28263682]
[1743942036173,0.58206475,588.71,588.21,0.28263682]
[1743942036369,0.617,588.74,588.21,0.28263682]
[1743942036573,0.58210497,588.73,588.21,0.28263682]
[1743942036771,0.58210497,588.72,588.21,0.28263682]
[1743942037073,0.58210497,588.71,588.2,1.27319059]
[1743942037273,0.617,588.74,588.21,0.2826004]
[1743942037470,0.58210738,588.73,588.21,0.2826004]
[1743942037673,0.58210738,588.72,588.21,0.2826004]
[1743942037871,0.58210738,588.71,588.21,0.2826004]
[1743942038072,0.617,588.74,588.19,1.27319059]
[1743942038274,0.582151,588.73,588.2,0.28260573]
[1743942038472,0.582151,588.72,588.2,0.28260573]
[1743942038674,0.582151,588.71,588.2,0.28260573]
[1743942038874,0.582151,588.7,588.2,0.28260573]
[1743942039074,0.617,588.74,588.2,0.28260573]
[1743942039269,0.58220002,588.73,588.2,0.28260573]
[1743942039475,0.58220002,588.72,588.2,0.28260573]
[1743942039676,0.58220002,588.71,588.19,1.27319059]
[1743942039877,0.58220002,588.7,588.2,0.28260602]
[1743942040075,0.617,588.74,588.2,0.28260602]
[1743942040274,0.5822541,588.73,588.2,0.28260602]
[1743942040476,0.5822541,588.72,588.2,0.28260602]
[1743942040676,0.5822541,588.71,588.2,0.28260602]
[1743942040873,0.5822541,588.7,588.06,0.28260602]
[1743942041074,0.617,588.74,588.06,0.28260602]
[1743942041272,0.58232672,588.73,588.06,0.28260602]
[1743942041474,0.58239898,588.72,588.06,0.28260602]
[1743942041773,0.58239898,588.71,588.06,0.28260602]
[1743942041976,0.58239898,588.7,588.06,0.28260602]
[1743942042174,0.617,588.74,588.05,1.27319059]
[1743942042378,0.58239502,588.73,588.06,0.28261141]
[1743942042577,0.58239502,588.72,588.04,0.28261141]
[1743942042776,0.58239502,588.72,588.03,1.27319059]
[1743942042777,0.58239502,588.71,588.05,0.28261141]
[1743942042976,0.58239502,588.7,588.04,0.28261141]
[1743942043174,0.58239502,588.69,588.03,1.27319059]
[1743942043377,0.58239502,588.68,588.04,0.28261759]
[1743942043677,0.58239502,588.67,588.04,0.28261759]
[1743942043873,0.58239502,588.66,588.04,0.28261759]
[1743942044077,0.58239502,588.65,588.04,0.28261759]
[1743942044273,0.58239502,588.64,588.04,0.28261759]
[1743942044476,0.617,588.74,588.04,0.28261759]
[1743942044675,0.58242999,588.73,588.04,0.28261759]
[1743942044874,0.58242999,588.72,588.04,0.28261759]
[1743942045078,0.58242999,588.71,588.04,1.55580818]
[1743942045379,0.58242999,588.7,588.05,0.28261759]
[1743942045579,0.58242999,588.69,588.05,0.28261759]
[1743942045879,0.58242999,588.68,588.05,0.28261759]
[1743942046076,0.58242999,588.67,588.05,0.28261759]
[1743942046276,0.58242999,588.66,588.05,0.28261759]
[1743942046483,0.58242999,588.65,588.04,1.27319059]
[1743942046784,0.58242999,588.64,588.05,0.28263408]
[1743942046982,0.58242999,588.63,588.05,0.28263408]
[1743942047278,0.58242999,588.62,588.05,0.28263408]
[1743942047477,0.617,588.74,588.04,0.28263408]
[1743942047681,0.58244015,588.73,588.04,0.28263408]
[1743942047977,0.58244015,588.72,588.04,0.28263408]
[1743942048176,0.58244015,588.71,588.04,0.28263408]
[1743942048377,0.58244015,588.7,588.03,1.27319059]
[1743942048676,0.617,588.74,588.03,1.27319059]
[1743942048677,0.58244015,588.69,588.04,0.28264455]
[1743942048877,0.58243631,588.68,588.04,0.28264455]
[1743942049081,0.58243631,588.67,588.04,0.28264455]
[1743942049278,0.58243631,588.66,588.04,0.28264455]
[1743942049483,0.58243631,588.65,588.04,0.28264455]
[1743942049681,0.58243631,588.64,588.04,0.28264455]
[1743942049883,0.617,588.74,588.04,0.28264455]
[1743942050079,0.58243232,588.73,588.04,0.28264455]
[1743942050283,0.58243232,588.72,588.1,1.27319059]
[1743942050583,0.58243232,588.71,588.11,0.28264455]
[1743942050883,0.58243232,588.7,588.1,1.27319059]
[1743942051083,0.58243232,588.69,588.1,1.27319059]
[1743942051378,0.58243232,588.68,588.1,1.27319059]
[1743942051683,0.58243232,588.67,588.1,1.27319059]
[1743942051878,0.58243232,588.66,588.1,1.27319059]
[1743942052085,0.58243232,588.65,588.1,1.27319059]
[1743942052283,0.58243232,588.64,588.1,1.27319059]
[1743942052579,0.58243232,588.63,588.1,1.27319059]
[1743942052785,0.58243232,588.62,587.92,0.34018233]
[1743942052984,0.58243232,588.61,587.93,0.28296477]
[1743942053185,0.58243232,588.6,587.93,0.28296477]
[1743942053385,0.58243232,588.59,587.93,0.28296477]
[1743942053586,0.58243232,588.58,587.93,0.28296477]
[1743942053785,0.58243232,588.57,587.93,0.28296477]
[1743942053982,0.58243232,588.56,587.93,0.28296477]
[1743942054287,0.58243232,588.55,587.93,0.28296477]
[1743942054487,0.58243232,588.54,587.93,0.28296477]
[1743942054686,0.58243232,588.53,587.93,0.28296477]
[1743942054987,0.58243232,588.52,587.93,0.28296477]
[1743942055186,0.58243232,588.51,587.93,0.28296477]
[1743942055385,0.58243232,588.5,587.93,0.28296477]
[1743942055586,0.58243232,588.49,587.93,0.28296477]
[1743942055887,0.29571092,588.59,587.93,0.28296477]
[1743942056086,0.5811661,588.58,587.93,0.28296477]
[1743942056286,0.5811661,588.57,587.93,0.28296477]
[1743942056587,0.5811661,588.56,587.93,0.28296477]
[1743942056786,0.5811661,588.55,587.93,0.28296477]
[1743942056984,0.5811661,588.54,587.93,0.28296477]
[1743942057181,0.5811661,588.53,587.93,0.28296477]
[1743942057386,0.758,588.53,587.93,0.28296477]
[1743942058585,0.758,588.53,587.94,0.28294846]
[1743942058785,0.758,588.53,587.93,0.28294846]
[1743942058985,0.758,588.53,587.94,0.28294846]
[1743942059186,0.758,588.53,587.93,0.28294846]
[1743942059485,0.758,588.53,587.94,0.28294846]
[1743942059687,0.758,588.53,587.93,0.28294846]
[1743942059986,0.758,588.53,587.94,0.28294846]
[1743942060186,0.758,588.53,587.93,0.28294846]
[1743942060385,0.758,588.53,587.94,0.28294846]
[1743942060585,0.758,588.53,587.93,0.28294846]
[1743942060786,0.758,588.53,587.92,0.34018233]
[1743942060986,0.758,588.53,587.93,0.28296714]
[1743942066388,0.758,588.53,587.92,0.34018233]
[1743942066591,0.758,588.53,587.93,0.28299499]
[1743942067795,1.05378255,588.53,587.93,0.28299499]
[1743942069596,0.758,588.53,587.93,0.28299499]
[1743942070697,0.758,588.53,587.92,0.34018233]
[1743942070892,1.05378255,588.53,587.92,0.34018233]
[1743942071495,1.05378255,588.53,587.93,0.28300491]
[1743942071698,1.05378255,588.53,587.48,1.27319059]
[1743942072000,1.05378255,588.53,587.54,0.29580518]
[1743942072198,1.05378255,588.53,587.55,0.28306403]
[1743942072599,0.758,588.53,587.55,0.28306403]
[1743942072899,0.758,588.53,587.56,0.28306403]
[1743942073199,0.758,588.53,587.5,0.28306403]
[1743942073400,0.758,588.53,587.51,0.28308319]
[1743942073695,0.29586176,588.52,587.52,0.28308319]
[1743942074200,0.5797574,588.51,587.52,0.28308319]
[1743942074398,0.5797574,588.5,587.52,0.28308319]
[1743942074595,0.5797574,588.51,587.52,0.28308319]
[1743942074800,0.5797574,588.5,587.52,0.28308319]
[1743942074997,0.5797574,588.49,587.53,0.28317876]
[1743942075297,0.87561916,588.52,587.54,0.28317876]
[1743942075503,0.758,588.53,587.5,0.28317876]
[1743942076895,0.2958844,588.52,587.5,0.28317876]
[1743942078297,0.2958844,588.52,587.5,1.27319059]
[1743942078503,0.758,588.53,587.51,0.28308913]
[1743942079905,0.29588314,588.52,587.51,0.28308913]
[1743942080201,0.29588314,588.52,587.52,0.28305965]
[1743942080406,0.29588314,588.52,587.53,0.28305965]
[1743942080608,0.29588314,588.52,587.51,0.28305965]
[1743942080811,0.29588314,588.52,587.52,0.28305965]
[1743942081207,0.29588314,588.52,587.53,0.28305965]
[1743942081406,0.29588314,588.52,587.54,0.28305965]
[1743942081604,0.758,588.53,587.5,1.27319059]
[1743942081807,0.29588314,588.51,587.51,0.28304311]
[1743942082009,0.29588314,588.51,587.52,0.28304311]
[1743942082210,0.29588314,588.51,587.58,1.27319059]
[1743942082408,0.29588314,588.51,587.59,0.28304311]
[1743942084308,0.29588314,588.51,587.61,1.27319059]
[1743942084509,0.57887467,588.8,587.62,0.28304311]
[1743942084706,1.23099415,588.79,587.62,0.28304311]
[1743942084909,1.23099992,588.78,587.62,0.28304311]
[1743942085106,0.91856589,588.77,587.61,1.27319059]
[1743942085312,1.23101473,588.76,587.62,0.28304492]
[1743942085608,1.2310205,588.75,587.62,0.28304492]
[1743942085814,0.89131774,588.74,587.62,0.28304492]
[1743942086019,1.23103204,588.73,587.62,0.28304492]
[1743942086214,1.23103781,588.72,587.62,0.28304492]
[1743942086412,0.65216891,588.71,587.65,1.27319059]
[1743942086716,0.33973161,588.7,587.66,0.28304492]
[1743942087010,0.31245386,588.69,587.66,0.28304492]
[1743942087213,0.91861782,588.68,587.66,0.28304492]
[1743942087514,0.57887467,588.67,587.66,0.28304492]
[1743942087814,0.57887467,588.66,587.66,0.28304492]
[1743942088015,0.91863513,588.65,587.66,0.28304492]
[1743942088213,0.91864091,588.64,587.67,1.27319059]
[1743942088416,0.57887467,588.63,587.68,0.28304492]
[1743942088618,0.57887467,588.62,587.69,0.28310867]
[1743942088918,0.57887467,588.61,587.7,0.28310867]
[1743942089120,0.57887467,588.6,587.68,0.28310867]
[1743942089319,0.57887467,588.59,587.68,0.28310867]
[1743942089518,0.57887467,588.58,587.68,0.28310867]
[1743942089716,0.57887467,588.62,587.68,0.28310867]
[1743942090015,0.57887467,588.61,587.68,0.28310867]
[1743942090218,0.57887467,588.6,587.68,0.28310867]
[1743942090420,0.57887467,588.59,587.68,0.28310867]
[1743942090719,0.57887467,588.58,587.68,0.28310867]
[1743942090917,0.57887467,588.62,587.68,0.28310867]
[1743942091113,0.57887467,588.61,587.5,0.28310867]
[1743942091314,0.57887467,588.6,587.5,0.28310867]
[1743942091514,0.57887467,588.59,587.5,0.28310867]